bitfinex/quotes_BTCUSD_20250221
["timestamp","ask_amount","ask_price","bid_price","bid_amount"]
[1740110145290,0.0008508,98249.0,98248.0,0.4009709]
[1740110145825,0.0008508,98249.0,98248.0,0.3989709]
[1740110146026,0.0008508,98249.0,98248.0,0.4009709]
[1740110146463,0.0008508,98249.0,98248.0,0.3989709]
[1740110146679,0.0008508,98249.0,98248.0,0.4019709]
[1740110147641,0.0008508,98249.0,98248.0,0.4009709]
[1740110147847,0.0008508,98249.0,98248.0,0.3250709]
[1740110148045,0.0008508,98249.0,98248.0,0.1733969]
[1740110149585,0.0008508,98249.0,98248.0,0.3260709]
[1740110152134,0.0008508,98249.0,98248.0,0.1733969]
[1740110153535,0.0008508,98249.0,98248.0,0.3260709]
[1740110154741,0.0008508,98249.0,98248.0,0.1279969]
[1740110156164,0.0008508,98249.0,98248.0,0.2806709]
[1740110164984,0.152654,98261.0,98251.0,0.152669]
[1740110165214,0.203536,98263.0,98251.0,0.152669]
[1740110165215,0.152656,98260.0,98251.0,0.152669]
[1740110165427,0.0098377,98262.0,98250.0,0.25712037]
[1740110165624,0.152658,98259.0,98250.0,0.10444937]
[1740110166343,0.001,98261.0,98250.0,0.10444937]
[1740110166754,0.152659,98259.0,98250.0,0.10444937]
[1740110167615,0.203539,98261.0,98250.0,0.10444937]
[1740110167826,0.204539,98261.0,98250.0,0.10444937]
[1740110167978,0.203539,98261.0,98250.0,0.10444937]
[1740110168193,0.152659,98258.0,98248.0,0.2793725]
[1740110168391,0.152665,98255.0,98248.0,0.1266985]
[1740110168589,0.0779,98259.0,98248.0,0.1266985]
[1740110168818,0.203545,98258.0,98248.0,0.1266985]
[1740110169354,0.0779,98259.0,98248.0,0.1266985]
[1740110169495,0.152664,98255.0,98248.0,0.1266985]
[1740110169706,0.203549,98257.0,98248.0,0.1276985]
[1740110169942,0.0779,98259.0,98248.0,0.1276985]
[1740110170149,0.152665,98255.0,98248.0,0.1276985]
[1740110170360,0.152667,98253.0,98248.0,0.1276985]
[1740110170561,0.203545,98258.0,98248.0,0.1276985]
[1740110170742,0.152667,98253.0,98248.0,0.1286985]
[1740110171177,0.152667,98253.0,98248.0,0.1276985]
[1740110171596,0.152667,98253.0,98248.0,0.1266985]
[1740110171801,0.152667,98253.0,98248.0,0.1276985]
[1740110172311,0.152667,98253.0,98248.0,0.1286985]
[1740110173368,0.203547,98257.0,98248.0,0.1286985]
[1740110173576,0.152668,98252.0,98248.0,0.1286985]
[1740110174191,0.152668,98252.0,98249.0,0.2286]
[1740110175543,0.152668,98252.0,98249.0,0.2296]
[1740110176708,0.0779,98259.0,98249.0,0.2296]
[1740110176926,0.152667,98253.0,98249.0,0.2296]
[1740110177284,0.0008508,98252.0,98249.0,0.2306]
[1740110177427,0.1535188,98252.0,98249.0,0.2306]
[1740110177776,0.1535188,98252.0,98249.0,0.2286]
[1740110177944,0.0008508,98252.0,98249.0,0.2286]
[1740110178483,0.0008508,98252.0,98249.0,0.2296]
[1740110178653,0.0008508,98252.0,98249.0,0.2306]
[1740110178833,0.0008508,98252.0,98250.0,0.2286]
[1740110180133,0.0008508,98252.0,98250.0,0.2296]
[1740110180755,0.0008508,98252.0,98250.0,0.2306]
[1740110181513,0.1535188,98252.0,98250.0,0.2306]
[1740110182112,0.0008508,98252.0,98250.0,0.2306]
[1740110182946,0.0008508,98252.0,98250.0,0.48591669]
[1740110183300,0.0008508,98252.0,98251.0,0.10264569]
[1740110184459,0.0008508,98252.0,98251.0,0.10364569]
[1740110184637,0.0008508,98252.0,98251.0,0.10464569]
[1740110189702,0.0008508,98252.0,98251.0,0.25731569]
[1740110198114,0.0008508,98252.0,98251.0,0.70887161]
[1740110199090,0.0008508,98252.0,98251.0,0.70787161]
[1740110199296,0.0008508,98252.0,98251.0,0.70687161]
[1740110199639,0.0018508,98252.0,98251.0,0.70987161]
[1740110199869,0.0018508,98252.0,98251.0,0.71487161]
[1740110202013,0.0018508,98252.0,98251.0,0.64661161]
[1740110209140,0.0018508,98252.0,98251.0,0.59127161]
[1740110209345,0.0018508,98252.0,98251.0,0.59851161]
[1740110209551,0.0018508,98252.0,98251.0,0.43860161]
[1740110210154,0.0018508,98252.0,98251.0,0.59127161]
[1740110210736,0.0008508,98252.0,98251.0,0.58827161]
[1740110211040,0.0008508,98252.0,98251.0,0.59127161]
[1740110211600,0.0008508,98252.0,98251.0,0.58627161]
[1740110212399,0.0008508,98252.0,98251.0,0.58927161]
[1740110213275,0.0008508,98252.0,98251.0,0.43660161]
[1740110220258,0.0008508,98252.0,98251.0,0.43060161]
[1740110220693,0.1535188,98252.0,98251.0,0.43360161]
[1740110220894,0.0008508,98252.0,98251.0,0.43360161]
[1740110221883,0.0008508,98252.0,98251.0,0.43260161]
[1740110222086,0.0008508,98252.0,98251.0,0.43160161]
[1740110222488,0.0008508,98252.0,98251.0,0.43360161]
[1740110226795,0.0008508,98252.0,98251.0,0.10564569]
[1740110227158,0.0008508,98252.0,98251.0,0.25831569]
[1740110228341,0.0008508,98252.0,98251.0,0.25631569]
[1740110228563,0.0008508,98252.0,98251.0,0.25531569]
[1740110228910,0.0008508,98252.0,98251.0,0.26531569]
[1740110228911,0.0018508,98252.0,98251.0,0.26531569]
[1740110230877,0.0018508,98252.0,98251.0,0.59327161]
[1740110231986,0.0018508,98252.0,98251.0,0.68484164]
[1740110232399,0.0018508,98252.0,98251.0,0.70483571]
[1740110235231,0.0018508,98252.0,98251.0,0.61326568]
[1740110241682,0.0018508,98252.0,98251.0,0.70475644]
[1740110247486,0.0018508,98252.0,98251.0,0.72381061]
[1740110248644,0.0018508,98252.0,98251.0,0.70381654]
[1740110248832,0.0018508,98252.0,98251.0,0.68476237]
[1740110251177,0.0018508,98252.0,98251.0,0.59327161]
[1740110255768,0.0018508,98252.0,98251.0,0.82187161]
[1740110282147,0.0018508,98252.0,98251.0,0.85370467]
[1740110289456,0.0018508,98252.0,98251.0,0.84870467]
[1740110289640,0.0008508,98252.0,98251.0,0.84870467]
[1740110289846,0.0018508,98252.0,98251.0,0.85370467]
[1740110290368,0.0008508,98252.0,98251.0,0.84870467]
[1740110290748,0.0018508,98252.0,98251.0,0.85370467]
[1740110293229,0.0008508,98252.0,98251.0,0.84870467]
[1740110293390,0.0018508,98252.0,98251.0,0.85370467]
[1740110293790,0.0008508,98252.0,98251.0,0.84870467]
[1740110294236,0.0018508,98252.0,98251.0,0.85370467]
[1740110299088,0.0018508,98252.0,98251.0,0.86090467]
[1740110301257,0.07497152,98259.0,98258.0,0.152659]
[1740110301484,0.07497152,98259.0,98258.0,0.25530469]
[1740110302061,0.07497152,98259.0,98258.0,0.58326061]
[1740110302551,0.07497152,98259.0,98258.0,0.59026061]
[1740110303739,0.07497152,98259.0,98258.0,0.81882061]
[1740110305666,0.07497152,98259.0,98258.0,0.66616161]
[1740110306011,0.07497152,98259.0,98258.0,0.81882061]
[1740110311127,0.0011212,98262.0,98261.0,0.152654]
[1740110311357,0.0011212,98262.0,98261.0,0.25529969]
[1740110312403,0.0011212,98262.0,98261.0,0.25829969]
[1740110312623,0.0011212,98262.0,98261.0,0.26029969]
[1740110317739,0.0011212,98262.0,98261.0,0.58825561]
[1740110318362,0.0011212,98262.0,98261.0,0.58325561]
[1740110318783,0.0021212,98262.0,98261.0,0.59525561]
[1740110319181,0.0011212,98262.0,98261.0,0.58925561]
[1740110319626,0.0021212,98262.0,98261.0,0.58925561]
[1740110319976,0.0021212,98262.0,98261.0,0.59625561]
[1740110326154,0.0021212,98262.0,98261.0,0.58925561]
[1740110326630,0.0021212,98262.0,98261.0,0.59625561]
[1740110327006,0.0011212,98262.0,98261.0,0.59025561]
[1740110327214,0.0021212,98262.0,98261.0,0.59725561]
[1740110328006,0.0021212,98262.0,98261.0,0.60488402]
[1740110329125,0.0021212,98262.0,98261.0,0.59725561]
[1740110332495,0.0021212,98262.0,98261.0,0.82581561]
[1740110337075,0.0021212,98262.0,98261.0,0.83301561]
[1740110341056,0.0021212,98262.0,98261.0,0.84755646]
[1740110341314,0.0021212,98262.0,98261.0,0.86755646]
[1740110342041,0.0021212,98262.0,98261.0,2.36755646]
[1740110343253,0.0021212,98262.0,98261.0,2.39933709]
[1740110343409,0.0021212,98262.0,98261.0,2.36755646]
[1740110343755,0.0021212,98262.0,98261.0,0.86755646]
[1740110345295,0.0021212,98262.0,98261.0,0.89933751]
[1740110345497,0.0021212,98262.0,98261.0,0.86755646]
[1740110346105,0.1333212,98262.0,98261.0,0.61725561]
[1740110346302,0.1333212,98262.0,98261.0,0.67316161]
[1740110346512,0.1333212,98262.0,98261.0,0.24256]
[1740110346731,0.2859742,98262.0,98261.0,0.24256]
[1740110347365,0.2859742,98262.0,98261.0,0.23556]
[1740110347491,0.2849742,98262.0,98261.0,0.23356]
[1740110347902,0.2849742,98262.0,98261.0,0.22856]
[1740110348113,0.2849742,98262.0,98261.0,0.23156]
[1740110349805,0.2849742,98262.0,98261.0,0.23556]
[1740110350417,0.2849742,98262.0,98261.0,0.23156]
[1740110350645,0.2849742,98262.0,98261.0,0.23556]
[1740110350986,0.2849742,98262.0,98261.0,0.22856]
[1740110351390,0.2849742,98262.0,98261.0,0.22956]
[1740110359962,0.1323212,98262.0,98261.0,0.22956]
[1740110363739,0.1323212,98262.0,98261.0,0.382214]
[1740110363962,0.0833212,98262.0,98261.0,0.22956]
[1740110364549,0.0833212,98262.0,98261.0,0.382214]
[1740110365944,0.0833212,98262.0,98261.0,0.22956]
[1740110367062,0.0830506,98262.0,98261.0,0.48485969]
[1740110367266,0.0008506,98262.0,98261.0,0.48485969]
[1740110373192,0.0008506,98262.0,98261.0,0.48458909]
[1740110378149,0.0008506,98262.0,98261.0,0.48658909]
[1740110378509,0.0008506,98262.0,98261.0,0.48358909]
[1740110378723,0.0008506,98262.0,98261.0,0.48758909]
[1740110379603,0.0008506,98262.0,98261.0,0.49258909]
[1740110380227,0.0008506,98262.0,98261.0,0.48758909]
[1740110380428,0.0018506,98262.0,98261.0,0.49358909]
[1740110391225,0.0018506,98262.0,98261.0,0.50078909]
[1740110414696,0.00156118,98262.0,98261.0,0.50078909]
[1740110417225,0.00156118,98262.0,98261.0,0.59229201]
[1740110417963,0.00051621,98262.0,98261.0,0.59229201]
[1740110418097,0.00022679,98262.0,98261.0,0.59229201]
[1740110419033,5.361e-05,98262.0,98261.0,0.59229201]
[1740110419233,0.08590386,98272.0,98271.0,0.152639]
[1740110419447,0.08573068,98272.0,98271.0,0.25528469]
[1740110419617,0.07558296,98272.0,98271.0,0.25528469]
[1740110420370,0.07558296,98272.0,98271.0,0.25828469]
[1740110420792,0.0098539,98281.0,98274.0,0.152634]
[1740110420995,0.0098539,98281.0,98274.0,0.25527969]
[1740110421216,0.0008509,98283.0,98274.0,0.25527969]
[1740110422132,0.0008509,98283.0,98274.0,0.48383969]
[1740110422882,0.0008509,98283.0,98274.0,0.48983969]
[1740110423675,0.0008509,98283.0,98274.0,0.48483969]
[1740110423897,0.0008509,98283.0,98274.0,0.49083969]
[1740110424100,0.0008509,98283.0,98274.0,0.48983969]
[1740110424256,0.0018508,98275.0,98274.0,0.49683969]
[1740110424665,0.00179967,98275.0,98274.0,0.49683969]
[1740110425166,0.00119185,98275.0,98274.0,0.49683969]
[1740110426163,0.08723406,98284.0,98283.0,0.15262]
[1740110426368,0.08723406,98284.0,98283.0,0.25526569]
[1740110426576,0.07738936,98284.0,98283.0,0.25526569]
[1740110427382,0.07782214,98284.0,98283.0,0.26026569]
[1740110428395,0.07782214,98284.0,98283.0,0.26426569]
[1740110430459,0.0772422,98284.0,98283.0,0.26426569]
[1740110430796,0.07718527,98284.0,98283.0,0.26426569]
[1740110431200,0.00043278,98284.0,98283.0,0.26426569]
[1740110431409,0.00043278,98284.0,98283.0,0.60257041]
[1740110432323,0.00043278,98284.0,98283.0,0.59857041]
[1740110432524,0.00043278,98284.0,98283.0,0.60457041]
[1740110432976,0.00028869,98284.0,98283.0,0.59957041]
[1740110433189,0.00028869,98284.0,98283.0,0.60357041]
[1740110433763,0.000851,98301.0,98283.0,0.60357041]
[1740110433764,0.00053902,98301.0,98283.0,0.44695041]
[1740110433988,0.00058227,98301.0,98300.0,0.152594]
[1740110434190,0.00058227,98301.0,98300.0,0.25523969]
[1740110435154,0.00058227,98301.0,98300.0,0.25623969]
[1740110436425,0.00058227,98301.0,98300.0,0.48475969]
[1740110436637,0.00058227,98301.0,98300.0,0.48575969]
[1740110467339,0.00058227,98301.0,98300.0,0.48475969]
[1740110468442,0.00058227,98301.0,98300.0,0.48375969]
[1740110469495,0.00058227,98301.0,98300.0,0.48475969]
[1740110471077,0.00058227,98301.0,98300.0,0.48575969]
[1740110482685,0.00058227,98301.0,98300.0,0.49299969]
[1740110494633,0.00058227,98301.0,98300.0,0.49199969]
[1740110495035,0.00058227,98301.0,98300.0,0.49599969]
[1740110495803,0.00058227,98301.0,98300.0,0.49499969]
[1740110496045,0.00058227,98301.0,98300.0,0.49899969]
[1740110496254,0.00058227,98301.0,98300.0,0.49499969]
[1740110496535,0.00058227,98301.0,98300.0,0.50199969]
[1740110496759,0.00058227,98301.0,98300.0,0.50899969]
[1740110498211,0.00058227,98301.0,98300.0,0.83695561]
[1740110500787,0.00058227,98301.0,98300.0,0.85772994]
[1740110522499,0.00058227,98301.0,98300.0,0.88951622]
[1740110530841,0.00058227,98301.0,98300.0,0.90951622]
[1740110531041,0.00058227,98301.0,98300.0,0.92405707]
[1740110531267,0.00058227,98301.0,98300.0,2.42405707]
[1740110531824,0.00058227,98301.0,98300.0,2.41705707]
[1740110532229,0.00058227,98301.0,98300.0,2.42405707]
[1740110532674,0.00058227,98301.0,98300.0,2.57405707]
[1740110533026,0.00058227,98301.0,98300.0,2.56305707]
[1740110533499,0.00058227,98301.0,98300.0,2.57005707]
[1740110534894,0.00058227,98301.0,98300.0,1.07005707]
[1740110543023,0.00058227,98301.0,98300.0,1.07413107]
[1740110544055,0.00054227,98301.0,98300.0,1.07413107]
[1740110544253,0.00049141,98301.0,98300.0,1.07413107]
[1740110545529,0.0008509,98313.0,98312.0,0.18711585]
[1740110545736,0.0008509,98313.0,98312.0,1.64249267]
[1740110546286,0.0008509,98313.0,98312.0,3.14249267]
[1740110547009,0.0008509,98313.0,98312.0,3.14949267]
[1740110547610,0.0008509,98313.0,98312.0,3.15649267]
[1740110548234,0.0008509,98313.0,98312.0,3.14949267]
[1740110548664,0.0008509,98313.0,98312.0,3.15649267]
[1740110549132,0.0008509,98313.0,98312.0,1.65649267]
[1740110549461,0.0008509,98313.0,98312.0,1.88493267]
[1740110549666,0.0008509,98313.0,98312.0,3.38493267]
[1740110550322,0.0008509,98313.0,98312.0,3.40511136]
[1740110550942,0.0008509,98313.0,98312.0,1.90511136]
[1740110555263,0.0008509,98313.0,98312.0,1.93681417]
[1740110555726,0.0008509,98313.0,98312.0,3.43681417]
[1740110556280,0.0008509,98313.0,98312.0,3.44088717]
[1740110557433,9e-07,98313.0,98312.0,3.66638717]
[1740110557604,0.0008508,98322.0,98312.0,3.66638717]
[1740110557605,7e-07,98322.0,98321.0,0.33710185]
[1740110557809,7e-07,98322.0,98321.0,1.49607683]
[1740110558816,7e-07,98322.0,98321.0,1.50331683]
[1740110559217,7e-07,98322.0,98321.0,3.00331683]
[1740110560022,7e-07,98322.0,98321.0,3.01031683]
[1740110560629,7e-07,98322.0,98321.0,3.33827275]
[1740110560911,7e-07,98322.0,98321.0,3.34527275]
[1740110562334,7e-07,98322.0,98321.0,1.84527275]
[1740110565591,7e-07,98322.0,98321.0,1.86564765]
[1740110566544,7e-07,98322.0,98321.0,3.36564765]
[1740110568272,7e-07,98322.0,98321.0,3.36972065]
[1740110573777,7e-07,98322.0,98321.0,3.59812065]
[1740110575784,7e-07,98322.0,98321.0,3.59088065]
[1740110576148,7e-07,98322.0,98321.0,3.59808065]
[1740110584963,7e-07,98322.0,98321.0,3.59400765]
[1740110588535,7e-07,98322.0,98321.0,2.56938117]
[1740110588857,7e-07,98322.0,98321.0,1.06938117]
[1740110593005,7e-07,98322.0,98321.0,2.56938117]
[1740110594492,7e-07,98322.0,98321.0,1.06938117]
[1740110601071,7e-07,98322.0,98321.0,2.56938117]
[1740110606752,7e-07,98322.0,98321.0,1.06938117]
[1740110610727,7e-07,98322.0,98321.0,2.56938117]
[1740110611731,7e-07,98322.0,98321.0,2.55538117]
[1740110612159,7e-07,98322.0,98321.0,2.56938117]
[1740110612373,7e-07,98322.0,98321.0,2.56238117]
[1740110613599,7e-07,98322.0,98321.0,2.56938117]
[1740110614489,7e-07,98322.0,98321.0,2.49060163]
[1740110616049,7e-07,98322.0,98321.0,2.37764032]
[1740110616268,7e-07,98322.0,98321.0,0.88488032]
[1740110617014,7e-07,98322.0,98321.0,0.87788032]
[1740110617409,7e-07,98322.0,98321.0,0.88488032]
[1740110617869,7e-07,98322.0,98321.0,0.87788032]
[1740110618030,7e-07,98322.0,98321.0,0.87088032]
[1740110618241,7e-07,98322.0,98321.0,0.87788032]
[1740110618420,7e-07,98322.0,98321.0,0.88488032]
[1740110618863,7e-07,98322.0,98321.0,0.87788032]
[1740110619422,7e-07,98322.0,98321.0,1.04242117]
[1740110619656,0.0008118,98327.0,98326.0,0.152553]
[1740110619863,0.0008118,98327.0,98326.0,3.83630319]
[1740110620565,0.0008118,98327.0,98326.0,2.33630319]
[1740110621418,0.0008118,98327.0,98326.0,2.34330319]
[1740110621796,0.0098725,98331.0,98326.0,2.34330319]
[1740110621797,6.39460054,98331.0,98330.0,0.31708785]
[1740110621997,6.32646052,98331.0,98330.0,5.55143354]
[1740110622528,6.32646052,98331.0,98330.0,7.05143354]
[1740110622729,6.32646052,98331.0,98330.0,6.96973354]
[1740110623272,6.32646052,98331.0,98330.0,6.98373354]
[1740110623674,6.32646052,98331.0,98330.0,6.97673354]
[1740110623883,6.32646052,98331.0,98330.0,6.98373354]
[1740110624034,6.32646052,98331.0,98330.0,3.09033354]
[1740110624395,6.32646052,98331.0,98330.0,2.08223354]
[1740110624807,6.32646052,98331.0,98330.0,2.08923354]
[1740110625215,6.32731112,98331.0,98330.0,2.08923354]
[1740110625417,6.32336022,98331.0,98330.0,2.08923354]
[1740110626684,6.32336022,98331.0,98330.0,1.93373354]
[1740110627013,6.32336022,98331.0,98330.0,0.41919269]
[1740110627250,6.32336022,98331.0,98330.0,0.42643269]
[1740110628477,6.32336022,98331.0,98330.0,0.44691047]
[1740110628676,6.32336022,98331.0,98330.0,0.43967047]
[1740110628904,6.32336022,98331.0,98330.0,0.44691047]
[1740110631144,6.32336022,98331.0,98330.0,0.43967047]
[1740110631343,6.32336022,98331.0,98330.0,0.28967047]
[1740110631540,6.32336022,98331.0,98330.0,0.29691047]
[1740110632152,6.39886022,98331.0,98330.0,0.29691047]
[1740110633722,6.39886022,98331.0,98330.0,0.52527047]
[1740110636860,6.39886022,98331.0,98330.0,0.55700172]
[1740110637467,6.39886022,98331.0,98330.0,0.52527047]
[1740110637669,6.39886022,98331.0,98330.0,0.55700299]
[1740110639611,6.32336022,98331.0,98330.0,0.55700299]
[1740110665588,6.32336022,98331.0,98330.0,2.05700299]
[1740110667188,6.32336022,98331.0,98330.0,0.55700299]
[1740110667613,6.05490922,98331.0,98330.0,0.70700299]
[1740110667757,6.05490922,98331.0,98330.0,2.20700299]
[1740110668275,5.8716679,98331.0,98330.0,2.20700299]
[1740110669291,5.9935679,98331.0,98330.0,0.34500569]
[1740110669662,6.0135679,98331.0,98330.0,0.24236]
[1740110670104,6.1661129,98331.0,98330.0,0.24236]
[1740110670426,6.1661129,98331.0,98330.0,0.23536]
[1740110670788,6.3161129,98331.0,98330.0,0.23136]
[1740110670997,6.3161129,98331.0,98330.0,0.23536]
[1740110671471,6.3161129,98331.0,98330.0,0.23736]
[1740110671662,6.3161129,98331.0,98330.0,0.22836]
[1740110671866,6.3161129,98331.0,98330.0,0.23136]
[1740110672190,6.3161129,98331.0,98330.0,0.22836]
[1740110672398,6.3161129,98331.0,98330.0,0.23136]
[1740110672603,6.3161129,98331.0,98330.0,0.23436]
[1740110675209,6.3161129,98331.0,98330.0,0.23136]
[1740110675406,6.3161129,98331.0,98330.0,0.23036]
[1740110675720,6.3161129,98331.0,98330.0,0.23136]
[1740110724162,6.31580781,98331.0,98330.0,0.23136]
[1740110730678,6.33034866,98331.0,98330.0,0.23136]
[1740110730892,6.34068559,98331.0,98330.0,0.23036]
[1740110731702,6.34068559,98331.0,98330.0,0.22836]
[1740110732106,6.34400404,98331.0,98330.0,0.22836]
[1740110735823,6.66630404,98331.0,98330.0,0.22836]
[1740110737459,6.48888126,98331.0,98330.0,0.22836]
[1740110737661,6.19698126,98331.0,98330.0,0.22836]
[1740110737805,6.19698126,98331.0,98330.0,0.39102869]
[1740110738006,6.19698126,98331.0,98330.0,0.49367438]
[1740110739562,6.19698126,98331.0,98330.0,0.49667438]
[1740110740568,6.19698126,98331.0,98330.0,0.49967438]
[1740110741806,5.87468126,98331.0,98330.0,0.49967438]
[1740110742000,5.87468126,98331.0,98330.0,0.49667438]
[1740110742349,5.87468126,98331.0,98330.0,0.50067438]
[1740110743522,5.87468126,98331.0,98330.0,0.49767438]
[1740110744198,5.87468126,98331.0,98330.0,0.50067438]
[1740110746640,5.87468126,98331.0,98330.0,0.49767438]
[1740110747034,5.87468126,98331.0,98330.0,0.50067438]
[1740110747240,5.87468126,98331.0,98330.0,0.49667438]
[1740110747588,5.87468126,98331.0,98330.0,0.50067438]
[1740110748367,5.87468126,98331.0,98330.0,0.49367438]
[1740110748597,5.87468126,98331.0,98330.0,0.57957438]
[1740110748800,5.87468126,98331.0,98330.0,0.58357438]
[1740110749155,5.87468126,98331.0,98330.0,0.57957438]
[1740110749741,5.87468126,98331.0,98330.0,0.57657438]
[1740110750069,5.87468126,98331.0,98330.0,0.58057438]
[1740110750247,5.87468126,98331.0,98330.0,0.57657438]
[1740110750582,5.87468126,98331.0,98330.0,0.58157438]
[1740110750816,5.87468126,98331.0,98330.0,0.58857438]
[1740110751018,5.87468126,98331.0,98330.0,0.58357438]
[1740110751367,5.87468126,98331.0,98330.0,0.59757438]
[1740110751641,5.87468126,98331.0,98330.0,0.58357438]
[1740110751819,5.87468126,98331.0,98330.0,0.57657438]
[1740110752384,5.87468126,98331.0,98330.0,0.58357438]
[1740110753299,5.87468126,98331.0,98330.0,0.59057438]
[1740110753506,5.87468126,98331.0,98330.0,0.57657438]
[1740110753686,5.87468126,98331.0,98330.0,0.58357438]
[1740110753886,5.87468126,98331.0,98330.0,0.57657438]
[1740110754275,5.87468126,98331.0,98330.0,0.58357438]
[1740110754474,5.87468126,98331.0,98330.0,0.59057438]
[1740110754935,5.87468126,98331.0,98330.0,0.58357438]
[1740110755314,5.87468126,98331.0,98330.0,0.59057438]
[1740110758791,5.87468126,98331.0,98330.0,0.74057438]
[1740110758934,5.87468126,98331.0,98330.0,5.84027438]
[1740110759143,5.87584903,98331.0,98330.0,5.87081738]
[1740110759510,5.87584903,98331.0,98330.0,6.79711738]
[1740110759697,5.87584903,98331.0,98330.0,6.47031738]
[1740110760197,5.87584903,98331.0,98330.0,5.56391738]
[1740110760334,5.87584903,98331.0,98330.0,2.48421738]
[1740110760537,5.87584903,98331.0,98330.0,2.41501738]
[1740110760759,5.87584903,98331.0,98330.0,2.42471738]
[1740110760959,5.87584903,98331.0,98330.0,2.41771738]
[1740110761172,5.87584903,98331.0,98330.0,2.41071738]
[1740110761373,5.87584903,98331.0,98330.0,0.82081738]
[1740110761778,5.87584903,98331.0,98330.0,0.79027438]
[1740110762500,5.87584903,98331.0,98330.0,1.1182303]
[1740110763014,5.87584903,98331.0,98330.0,1.20971321]
[1740110764210,5.87584903,98331.0,98330.0,0.88175729]
[1740110765729,5.87584903,98331.0,98330.0,0.79027438]
[1740110768413,5.87752416,98331.0,98330.0,0.79027438]
[1740110772673,5.87752416,98331.0,98330.0,2.29027438]
[1740110775662,5.87752416,98331.0,98330.0,0.79027438]
[1740110776161,5.87752416,98331.0,98330.0,2.29027438]
[1740110779169,5.87752416,98331.0,98330.0,0.79027438]
[1740110779481,5.87752416,98331.0,98330.0,0.82198155]
[1740110779690,5.87752416,98331.0,98330.0,2.32198155]
[1740110779895,5.87752416,98331.0,98330.0,2.23908155]
[1740110782651,5.87752416,98331.0,98330.0,0.73908155]
[1740110783366,5.87752416,98331.0,98330.0,2.23908155]
[1740110786029,5.87752416,98331.0,98330.0,2.29337865]
[1740110786185,5.87752416,98331.0,98330.0,0.79337865]
[1740110786627,5.87752416,98331.0,98330.0,2.29337865]
[1740110789049,5.87752416,98331.0,98330.0,0.74367865]
[1740110789415,5.87752416,98331.0,98330.0,2.24367865]
[1740110792552,5.87475728,98331.0,98330.0,2.24367865]
[1740110792785,5.87475728,98331.0,98330.0,0.75087865]
[1740110793257,5.87475728,98331.0,98330.0,2.25087865]
[1740110796235,5.87475728,98331.0,98330.0,0.75087865]
[1740110796705,5.87475728,98331.0,98330.0,2.25087865]
[1740110799629,5.87475728,98331.0,98330.0,0.75087865]
[1740110800088,5.87475728,98331.0,98330.0,2.25087865]
[1740110803158,5.87475728,98331.0,98330.0,0.74367865]
[1740110803375,5.87475728,98331.0,98330.0,0.75087865]
[1740110803579,5.87475728,98331.0,98330.0,2.25087865]
[1740110804884,5.87034257,98331.0,98330.0,2.25087865]
[1740110806751,5.87034257,98331.0,98330.0,0.75087865]
[1740110807234,5.87034257,98331.0,98330.0,2.25087865]
[1740110810133,5.87034257,98331.0,98330.0,0.75087865]
[1740110810561,5.87034257,98331.0,98330.0,2.25087865]
[1740110813744,5.87034257,98331.0,98330.0,0.75087865]
[1740110814304,5.87034257,98331.0,98330.0,2.25087865]
[1740110817296,5.87034257,98331.0,98330.0,0.75087865]
[1740110817720,5.87034257,98331.0,98330.0,2.25087865]
[1740110820847,5.87034257,98331.0,98330.0,0.75087865]
[1740110821261,5.99934257,98331.0,98330.0,0.11012596]
[1740110821475,5.99934257,98331.0,98330.0,0.32836427]
[1740110821709,6.15188757,98331.0,98330.0,0.2966571]
[1740110822149,6.15188757,98331.0,98330.0,0.2896571]
[1740110822353,6.17188757,98331.0,98330.0,0.2966571]
[1740110822556,6.17188757,98331.0,98330.0,0.2896571]
[1740110822781,6.32188757,98331.0,98330.0,0.1615571]
[1740110822998,6.32188757,98331.0,98330.0,0.1685571]
[1740110823170,6.32188757,98331.0,98330.0,0.1115571]
[1740110823614,6.32188757,98331.0,98330.0,0.1165571]
[1740110823817,6.32188757,98331.0,98330.0,0.1095571]
[1740110823949,6.32188757,98331.0,98330.0,0.1115571]
[1740110824758,6.32188757,98331.0,98330.0,0.1125571]
[1740110825185,6.32188757,98331.0,98330.0,0.1055571]
[1740110825383,6.32288757,98331.0,98330.0,0.1055571]
[1740110825586,6.00034257,98331.0,98330.0,0.1055571]
[1740110825913,6.17288757,98331.0,98330.0,0.1055571]
[1740110826115,6.17288757,98331.0,98330.0,0.1045571]
[1740110826326,6.17388757,98331.0,98330.0,0.1045571]
[1740110826699,6.17288757,98331.0,98330.0,0.1045571]
[1740110827219,6.17388757,98331.0,98330.0,0.1045571]
[1740110827748,6.02034257,98331.0,98330.0,0.1045571]
[1740110827990,6.17288757,98331.0,98330.0,0.1045571]
[1740110828192,6.17388757,98331.0,98330.0,0.1045571]
[1740110830513,5.91964257,98331.0,98330.0,0.1045571]
[1740110830710,6.07218757,98331.0,98330.0,0.1045571]
[1740110831137,5.91964257,98331.0,98330.0,0.1045571]
[1740110837553,5.91917912,98331.0,98330.0,0.1045571]
[1740110844237,5.91910793,98331.0,98330.0,0.1045571]
[1740110850458,5.91910793,98331.0,98330.0,0.10926036]
[1740110852448,5.86970793,98331.0,98330.0,0.10926036]
[1740110853885,5.77010793,98331.0,98330.0,0.10926036]
[1740110854078,5.77010793,98331.0,98330.0,0.1045571]
[1740110854983,5.77010793,98331.0,98330.0,0.13506154]
[1740110855698,5.76910793,98331.0,98330.0,0.13506154]
[1740110855965,5.76810793,98331.0,98330.0,0.13606154]
[1740110856266,5.76810793,98331.0,98330.0,0.13706154]
[1740110856473,5.76810793,98331.0,98330.0,0.13806154]
[1740110857000,5.76810793,98331.0,98330.0,0.13706154]
[1740110857226,5.76810793,98331.0,98330.0,0.13806154]
[1740110857453,5.76810793,98331.0,98330.0,0.1427801]
[1740110857697,5.76810793,98331.0,98330.0,0.1417801]
[1740110857926,5.76810793,98331.0,98330.0,0.1397801]
[1740110858159,5.76810793,98331.0,98330.0,0.1407801]
[1740110859608,5.76810793,98331.0,98330.0,0.1417801]
[1740110860086,5.76810793,98331.0,98330.0,0.1407801]
[1740110860461,5.76810793,98331.0,98330.0,0.1417801]
[1740110860973,5.76810793,98331.0,98330.0,0.11127566]
[1740110861189,5.76810793,98331.0,98330.0,0.1065571]
[1740110863724,5.76810793,98331.0,98330.0,0.11127316]
[1740110865541,5.76810793,98331.0,98330.0,0.1065571]
[1740110874988,5.76810793,98331.0,98330.0,0.1055571]
[1740110875201,5.76810793,98331.0,98330.0,0.1045571]
[1740110875378,5.77010793,98331.0,98330.0,0.1045571]
[1740110875975,5.76910793,98331.0,98330.0,0.1045571]
[1740110876180,5.77010793,98331.0,98330.0,0.1045571]
[1740110882827,5.76910793,98331.0,98330.0,0.1045571]
[1740110883372,5.77010793,98331.0,98330.0,0.1045571]
[1740110883573,5.76910793,98331.0,98330.0,0.1045571]
[1740110883946,5.77010793,98331.0,98330.0,0.1045571]
[1740110884686,5.76910793,98331.0,98330.0,0.1045571]
[1740110884857,5.77010793,98331.0,98330.0,0.1045571]